lending/lending_fUSD_20250121
["ID","MTS","AMOUNT","RATE_DAILY","PERIOD"]
[349893193,1737481857800,-534.09,0.00020821,2]
[349893194,1737481857810,-307.346844,0.00020821,2]
[349893195,1737481857819,-1807.38,0.00020821,2]
[349893196,1737481857829,-620.7,0.00020821,2]
[349893197,1737481857839,-1229.07,0.00020821,2]
[349893198,1737481857848,-983.11,0.00020821,2]
[349893199,1737481857858,-1007.18,0.00020821,2]
[349893200,1737481857868,-1154.97,0.00020821,2]
[349893201,1737481857878,-151.0,0.00020821,2]
[349893202,1737481857887,-646.36,0.00020821,2]
[349893203,1737481857897,-500.0,0.00020821,2]
[349893204,1737481857906,-552.58,0.00020821,2]
[349893205,1737481857915,-500.0,0.00020821,2]
[349893206,1737481857925,-1758.1,0.00020821,2]
[349893207,1737481857934,-869.675254,0.00020821,2]
[349893208,1737481857944,-758.32,0.00020821,2]
[349893209,1737481857953,-500.0,0.00020821,2]
[349893210,1737481857963,-869.675254,0.00020821,2]
[349893211,1737481857972,-2087.54,0.00020821,2]
[349893212,1737481857982,-500.0,0.00020821,2]
[349893213,1737481857993,-552.04,0.00020821,2]
[349893214,1737481858002,-669.6,0.00020821,2]
[349893215,1737481858012,-500.0,0.00020821,2]
[349893216,1737481858021,-854.14,0.00020821,2]
[349893217,1737481858031,-814.49,0.00020821,2]
[349893218,1737481858041,-692.57,0.00020821,2]
[349893219,1737481858050,-2087.16,0.00020821,2]
[349893220,1737481858060,-863.83,0.00020821,2]
[349893221,1737481858069,-502.54,0.00020821,2]
[349893222,1737481858078,-777.16,0.00020821,2]
[349893223,1737481858087,-500.0,0.00020821,2]
[349893224,1737481858096,-892.77,0.00020821,2]
[349893225,1737481858106,-620.39,0.00020821,2]
[349893226,1737481858115,-1030.47,0.00020821,2]
[349893227,1737481858125,-1320.45,0.00020821,2]
[349893228,1737481858134,-573.28,0.00020821,2]
[349893229,1737481858143,-1860.97,0.00020821,2]
[349893230,1737481858153,-1428.91,0.00020821,2]
[349893231,1737481858162,-1602.47,0.00020821,2]
[349893232,1737481858171,-681.59,0.00020821,2]
[349893233,1737481858180,-992.99,0.00020821,2]
[349893234,1737481858189,-500.0,0.00020821,2]
[349893235,1737481858199,-554.72,0.00020821,2]
[349893236,1737481858208,-860.54,0.00020821,2]
[349893237,1737481858217,-951.01,0.00020821,2]
[349893238,1737481858227,-500.0,0.00020821,2]
[349893239,1737481858236,-939.91,0.00020821,2]
[349893240,1737481858245,-2768.13,0.00020821,2]
[349893241,1737481858254,-1656.07,0.00020821,2]
[349893242,1737481858264,-500.0,0.00020821,2]
[349893243,1737481858273,-630.78,0.00020821,2]
[349893244,1737481858283,-500.0,0.00020821,2]
[349893245,1737481858293,-955.19,0.00020821,2]
[349893246,1737481858303,-500.0,0.00020821,2]
[349893247,1737481858312,-1879.4,0.00020821,2]
[349893248,1737481858321,-522.33667414,0.00020821,2]
[349893249,1737481858331,-1189.73,0.00020821,2]
[349893250,1737481858340,-1344.96,0.00020821,2]
[349893251,1737481858349,-1273.53,0.00020821,2]
[349893252,1737481858360,-611.0,0.00020821,2]
[349893253,1737481858369,-915.46,0.00020821,2]
[349893254,1737481858379,-500.0,0.00020821,2]
[349893255,1737481858388,-1205.37,0.00020821,2]
[349893256,1737481858398,-815.77,0.00020821,2]
[349893257,1737481858407,-500.0,0.00020821,2]
[349893258,1737481858418,-500.0,0.00020821,2]
[349893259,1737481858427,-1058.59,0.00020821,2]
[349893260,1737481858436,-903.51,0.00020821,2]
[349893261,1737481858446,-500.0,0.00020821,2]
[349893262,1737481858455,-976.3,0.00020821,2]
[349893263,1737481858464,-267.745618,0.00020821,2]
[349893264,1737481858474,-1120.5,0.00020821,2]
[349893265,1737481858484,-267.745618,0.00020821,2]
[349893266,1737481858499,-1815.36,0.00020821,2]
[349893267,1737481858508,-500.0,0.00020821,2]
[349893268,1737481858518,-2428.83,0.00020821,2]
[349893269,1737481858527,-2074.92,0.00020821,2]
[349893270,1737481858537,-500.0,0.00020821,2]
[349893271,1737481858547,-4234.98,0.00020821,2]
[349893272,1737481858558,-652.153848,0.00020821,2]
[349893273,1737481858568,-500.0,0.00020821,2]
[349893274,1737481858578,-1050.06,0.00020821,2]
[349893275,1737481858588,-758.4,0.00020821,2]
[349893276,1737481858598,-885.5,0.00020821,2]
[349893277,1737481858614,-652.153848,0.00020821,2]
[349893278,1737481858624,-969.51,0.00020821,2]
[349893279,1737481858634,-500.0,0.00020821,2]
[349893280,1737481858644,-500.0,0.00020821,2]
[349893281,1737481858654,-678.61,0.00020821,2]
[349893282,1737481858664,-151.0,0.00020821,2]
[349893283,1737481858673,-1307.89,0.00020821,2]
[349893284,1737481858683,-151.0,0.00020821,2]
[349893285,1737481858698,-151.0,0.00020821,2]
[349893286,1737481858708,-225.11263,0.00020821,2]
[349893287,1737481858718,-500.0,0.00020821,2]
[349893288,1737481858728,-500.0,0.00020821,2]
[349893289,1737481858739,-655.48,0.00020821,2]
[349893290,1737481858749,-3654.26,0.00020821,2]
[349893291,1737481858759,-225.11263,0.00020821,2]
[349893292,1737481858769,-964.72,0.00020821,2]
[349893293,1737481858779,-1432.91,0.00020821,2]
[349893294,1737481858789,-500.0,0.00020821,2]
[349893295,1737481858799,-711.72,0.00020821,2]
[349893296,1737481858809,-1306.74,0.00020821,2]
[349893297,1737481858819,-500.0,0.00020821,2]
[349893298,1737481858829,-151.0,0.00020821,2]
[349893299,1737481858839,-503.78,0.00020821,2]
[349893300,1737481858849,-1711.39,0.00020821,2]
[349893301,1737481858862,-715.38,0.00020821,2]
[349893302,1737481858872,-1372.82,0.00020821,2]
[349893303,1737481858883,-151.0,0.00020821,2]
[349893304,1737481858893,-856.63,0.00020821,2]
[349893305,1737481858903,-578.87,0.00020821,2]
[349893306,1737481858913,-500.0,0.00020821,2]
[349893307,1737481858924,-500.0,0.00020821,2]
[349893308,1737481858933,-500.0,0.00020821,2]
[349893309,1737481858943,-500.0,0.00020821,2]
[349893310,1737481858952,-500.0,0.00020821,2]
[349893311,1737481858962,-1804.88,0.00020821,2]
[349893312,1737481858973,-1270.88,0.00020821,2]
[349893313,1737481858984,-1825.15,0.00020821,2]
[349893314,1737481858994,-644.97,0.00020821,2]
[349893315,1737481859003,-701.52,0.00020821,2]
[349893316,1737481859013,-500.0,0.00020821,2]
[349893317,1737481859023,-1777.14396621,0.00020825,2]
[349893318,1737481859033,-1343.50579873,0.00020827,2]
[349893319,1737481859042,-20769.12677455,0.00020829,2]
[349893320,1737481859052,-1343.50579873,0.0002083,2]
[349893321,1737481859062,-877.58042881,0.00020831,2]
[349893322,1737481859072,-1000.0,0.00020831,2]
[349893323,1737481859082,-217.42637582,0.00020832,2]
[349893324,1737481859091,-200.0,0.00020832,2]
[349893325,1737481859101,-1134.90994568,0.00020834,2]
[349893326,1737481859114,-3768.93422932,0.00020837,2]
[349893327,1737481859123,-1148.4106686,0.00020838,2]
[349893328,1737481859133,-240.0,0.00020838,2]
[349893329,1737481859143,-20769.12677455,0.00020842,2]
[349893330,1737481859152,-217.42637582,0.00020846,2]
[349893331,1737481859162,-240.0,0.00020849,2]
[349893332,1737481859171,-233.21,0.00020851,2]
[349893333,1737481859181,-217.42637582,0.00020852,2]
[349893334,1737481859191,-200.0,0.00020854,2]
[349893335,1737481859201,-200.0,0.00020854,2]
[349893336,1737481859210,-150.0,0.00020855,2]
[349893337,1737481859220,-4678.95532834,0.00020856,2]
[349893338,1737481859229,-877.58042881,0.00020857,2]
[349893339,1737481859238,-1343.50579873,0.0002086,2]
[349893340,1737481859247,-877.58042881,0.00020865,2]
[349893341,1737481859258,-217.42637582,0.00020865,2]
[349893342,1737481859267,-211.87607278,0.00020866,2]
[349893343,1737481859277,-4678.95532834,0.00020868,2]
[349893344,1737481859287,-1134.90994568,0.00020869,2]
[349893345,1737481859297,-240.0,0.00020869,2]
[349893346,1737481859306,-4678.95532834,0.0002087,2]
[349893347,1737481859316,-381.51400281,0.0002087,2]
[349893348,1737481859325,-240.0,0.0002087,2]
[349893349,1737481859335,-200.0,0.00020871,2]
[349893350,1737481859345,-200.0,0.00020872,2]
[349893351,1737481859354,-1366.04961174,0.00020873,2]
[349893352,1737481859367,-9666.26325211,0.00020873,2]
[349893353,1737481859377,-9666.26325211,0.00020873,2]
[349893354,1737481859387,-1134.90994568,0.00020875,2]
[349893355,1737481859396,-240.0,0.00020876,2]
[349893356,1737481859405,-200.0,0.00020876,2]
[349893357,1737481859414,-2522.94,0.00020876,2]
[349893358,1737481859424,-1366.04961174,0.00020891,2]
[349893359,1737481859433,-200.0,0.00020891,2]
[349893360,1737481859442,-5554.59163875,0.00020892,2]
[349893361,1737481859452,-9666.26325211,0.00020892,2]
[349893362,1737481859461,-200.0,0.00020895,2]
[349893363,1737481859470,-200.0,0.00020895,2]
[349893364,1737481859480,-1777.14396621,0.000209,2]
[349893365,1737481859489,-200.0,0.000209,2]
[349893366,1737481859499,-2447.06897,0.000209,2]
[349893367,1737481859509,-150.0,0.000209,2]
[349893368,1737481859518,-200.0,0.00020902,2]
[349893369,1737481859527,-1148.4106686,0.0002091,2]
[349893370,1737481859537,-3768.93422932,0.00020911,2]
[349893371,1737481859546,-500.0,0.00020911,2]
[349893372,1737481859555,-1366.04961174,0.00020915,2]
[349893373,1737481859565,-25000.0,0.00020916,2]
[349893374,1737481859574,-301.101488,0.00020916,2]
[349893375,1737481859583,-151.0,0.00020916,2]
[349893376,1737481859593,-151.0,0.00020916,2]
[349893377,1737481859602,-200.0,0.00020917,2]
[349893378,1737481859613,-20769.12677455,0.00020918,2]
[349893379,1737481859623,-3768.93422932,0.00020919,2]
[349893380,1737481859632,-877.58042881,0.0002092,2]
[349893381,1737481859642,-205.0,0.0002092,2]
[349893382,1737481859651,-207.0,0.0002092,2]
[349893383,1737481859660,-150.0,0.00020924,2]
[349893384,1737481859670,-1366.04961174,0.00020925,2]
[349893385,1737481859683,-200.0,0.00020929,2]
[349893386,1737481859692,-1000.0,0.00020932,2]
[349893387,1737481859702,-1148.4106686,0.00020932,2]
[349893388,1737481859712,-1777.14396621,0.00020934,2]
[349893389,1737481859722,-5554.59163875,0.00020935,2]
[349893390,1737481859734,-424.24,0.00020935,2]
[349893391,1737481859744,-1777.14396621,0.00020936,2]
[349893392,1737481859755,-200.0,0.0002094,2]
[349893393,1737481859767,-2773.9338953,0.00020941,2]
[349893394,1737481859777,-9666.26325211,0.00020942,2]
[349893395,1737481859787,-3768.93422932,0.00020944,2]
[349893396,1737481859797,-20769.12677455,0.00020946,2]
[349893397,1737481859807,-1134.90994568,0.00020949,2]
[349893398,1737481859817,-1134.90994568,0.0002095,2]
[349893399,1737481859826,-1343.50579873,0.0002095,2]
[349893400,1737481859837,-1101.88,0.0002095,2]
[349893401,1737481859847,-29999.99,0.00020951,2]
[349893402,1737481859857,-518.6,0.00020951,2]
[349893403,1737481859867,-1128.86,0.00020951,2]
[349893404,1737481859878,-3187.8,0.00020951,2]
[349893405,1737481859888,-3409.09926398,0.00020952,2]
[349893406,1737481859897,-173.0,0.00020959,13]
[349893407,1737481859906,-875.1,0.00020959,2]
[349893408,1737481859916,-675.86,0.00020959,2]
[349893409,1737481859924,-300.0,0.00020959,2]
[349893410,1737481859933,-5000.0,0.00020961,2]
[349893411,1737481859942,-2287.35429341,0.00020964,2]
[349893412,1737481859951,-211.87607278,0.00020969,2]
[349893413,1737481859960,-500.0,0.00020973,2]
[349893414,1737481859970,-500.0,0.00020973,2]
[349893415,1737481859980,-301.45000873,0.00020973,2]
[349893416,1737481859990,-500.0,0.00020973,2]
[349893417,1737481860000,-377.17375786,0.00020973,2]
[349893418,1737481860009,-500.0,0.00020973,2]
[349893419,1737481860020,-500.0,0.00020973,2]
[349893420,1737481860030,-1936.993865,0.0002098,2]
[349893421,1737481860040,-194.32161878,0.0002098,2]
[349893422,1737481860049,-5817.17669716,0.0002098,2]
[349893423,1737481860058,-1000.0,0.00020984,2]
[349893424,1737481860068,-319.87778702,0.0002099,2]
[349893425,1737481860078,-151.0,0.00020999,2]
[349893426,1737481860088,-679.41,0.00020999,2]
[349893427,1737481860098,-5000.0,0.00020999,2]
[349893428,1737481860109,-1101.88,0.00020999,2]
[349893429,1737481860120,-1101.88,0.00020999,2]
[349893430,1737481860131,-1101.88,0.00020999,2]
[349893431,1737481860141,-144038.81967411,0.00020999,2]
[349893432,1737481860151,-2110.0,0.00021,2]
[349893433,1737481860160,-85312.59726482,0.00021,2]
[349893434,1737481860169,-484991.03636915,0.00021,4]
[349893435,1737481860179,-7594.49761491,0.00021,2]
[349893436,1737481860189,-31252.22140279,0.00021,2]
[349893437,1737481860328,-1143.35343234,0.00021,2]
[349893438,1737481860339,-188.65985442,0.00021,2]
[349893439,1737481860348,-151.0,0.00021,2]
[349893440,1737481860359,-151.0,0.00021,2]
[349893441,1737481860368,-151.0,0.00021,2]
[349893442,1737481860378,-2477.76,0.00021,2]
[349893443,1737481860387,-151.0,0.00021,2]
[349893444,1737481860397,-151.0,0.00021,2]
[349893445,1737481860407,-151.0,0.00021,2]
[349893446,1737481860416,-151.0,0.00021,2]
[349893447,1737481860426,-151.0,0.00021,2]
[349893448,1737481860435,-221.720104,0.00021,2]
[349893449,1737481860445,-151.0,0.00021,2]
[349893450,1737481860455,-151.0,0.00021,2]
[349893451,1737481860464,-151.0,0.00021,2]
[349893452,1737481860474,-151.0,0.00021,2]
[349893453,1737481860484,-151.0,0.00021,2]
[349893454,1737481860494,-310.142692,0.00021,2]
[349893455,1737481860504,-310.142692,0.00021,2]
[349893456,1737481860514,-151.0,0.00021,2]
[349893457,1737481860523,-151.0,0.00021,2]
[349893458,1737481860533,-151.0,0.00021,2]
[349893459,1737481860543,-151.0,0.00021,2]
[349893460,1737481860552,-275.814868,0.00021,2]
[349893461,1737481860562,-151.0,0.00021,2]
[349893462,1737481860571,-151.0,0.00021,2]
[349893463,1737481860581,-427.136495,0.00021,2]
[349893464,1737481860591,-427.136495,0.00021,2]
[349893465,1737481860601,-427.136495,0.00021,2]
[349893466,1737481860612,-427.136495,0.00021,2]
[349893467,1737481860622,-151.0,0.00021,2]
[349893468,1737481860632,-151.0,0.00021,2]
[349893469,1737481860642,-154.573818,0.00021,2]
[349893470,1737481860651,-154.573818,0.00021,2]
[349893471,1737481860661,-154.573818,0.00021,2]
[349893472,1737481860671,-671.231652,0.00021,2]
[349893473,1737481860681,-671.231652,0.00021,2]
[349893474,1737481860693,-671.231652,0.00021,2]
[349893475,1737481860702,-671.231652,0.00021,2]
[349893476,1737481860711,-151.0,0.00021,2]
[349893477,1737481860721,-151.0,0.00021,2]
[349893478,1737481860731,-183.828546,0.00021,2]
[349893479,1737481860741,-183.828546,0.00021,2]
[349893480,1737481860751,-183.828546,0.00021,2]
[349893481,1737481860762,-183.828546,0.00021,2]
[349893482,1737481860774,-797.051121,0.00021,2]
[349893483,1737481860784,-797.051121,0.00021,2]
[349893484,1737481860794,-797.051121,0.00021,2]
[349893485,1737481860805,-797.051121,0.00021,2]
[349893486,1737481860815,-1800.0,0.00021,22]
[349893487,1737481860825,-151.0,0.00021,2]
[349893488,1737481860835,-151.0,0.00021,2]
[349893489,1737481860844,-307.346844,0.00021,2]
[349893490,1737481860855,-307.346844,0.00021,2]
[349893491,1737481860866,-307.346844,0.00021,2]
[349893492,1737481860875,-307.346844,0.00021,2]
[349893493,1737481860884,-151.0,0.00021,2]
[349893494,1737481860895,-151.0,0.00021,2]
[349893495,1737481860905,-2556.122844,0.00021,2]
[349893496,1737481860914,-2556.122844,0.00021,2]
[349893497,1737481860924,-869.675254,0.00021,2]
[349893498,1737481860934,-869.675254,0.00021,2]
[349893499,1737481860944,-869.675254,0.00021,2]
[349893500,1737481860955,-869.675254,0.00021,2]
[349893501,1737481860964,-151.0,0.00021,2]
[349893502,1737481860974,-151.0,0.00021,2]
[349893503,1737481860984,-151.0,0.00021,2]
[349893504,1737481860993,-151.0,0.00021,2]
[349893505,1737481861003,-267.745618,0.00021,2]
[349893506,1737481861012,-267.745618,0.00021,2]
[349893507,1737481861022,-267.745618,0.00021,2]
[349893508,1737481861033,-267.745618,0.00021,2]
[349893509,1737481861043,-652.153848,0.00021,2]
[349893510,1737481861053,-652.153848,0.00021,2]
[349893511,1737481861063,-652.153848,0.00021,2]
[349893512,1737481861074,-652.153848,0.00021,2]
[349893513,1737481861084,-151.0,0.00021,2]
[349893514,1737481861095,-151.0,0.00021,2]
[349893515,1737481861105,-210.048319,0.00021,2]
[349893516,1737481861117,-225.11263,0.00021,2]
[349893517,1737481861126,-225.11263,0.00021,2]
[349893518,1737481861136,-151.0,0.00021,2]
[349893519,1737481861146,-151.0,0.00021,2]
[349893520,1737481861156,-1269.0,0.00021004,2]
[349893521,1737481861166,-2018.0,0.00021004,2]
[349893522,1737481861175,-581.396,0.00021004,2]
[349893523,1737481861185,-219.286,0.00021004,2]
[349893524,1737481861194,-636.0,0.00021004,2]
[349893525,1737481861205,-1864.0,0.00021004,2]
[349893526,1737481861214,-1261.0,0.00021004,2]
[349893527,1737481861224,-907.0,0.00021004,2]
[349893528,1737481861234,-3010.741,0.00021004,2]
[349893529,1737481861243,-781.0,0.00021004,2]
[349893530,1737481861254,-537.0,0.00021004,2]
[349893531,1737481861264,-150.0,0.00021004,2]
[349893532,1737481861273,-3984.0,0.00021004,2]
[349893533,1737481861283,-150.0,0.00021004,2]
[349893534,1737481861293,-3902.0,0.00021004,2]
[349893535,1737481861304,-150.0,0.00021004,2]
[349893536,1737481861313,-1106.0,0.00021004,2]
[349893537,1737481861323,-150.0,0.00021012,2]
[349893538,1737481861332,-150.0,0.0002104,2]
[349893539,1737481861342,-150.0,0.00021041,2]
[349893540,1737481861352,-463.0,0.00021041,2]
[349893541,1737481861363,-24791.0,0.00021041,2]
[349893542,1737481861372,-500.0,0.00021055,2]
[349893543,1737481861382,-150.0,0.00021063,2]
[349893544,1737481861392,-211.87607278,0.00021072,2]
[349893545,1737481861401,-666.0,0.00021079,2]
[349893546,1737481861411,-1101.88,0.00021079,2]
[349893547,1737481861421,-1101.88,0.00021079,2]
[349893548,1737481861431,-121594.98806417,0.0002108,2]
[349893549,1737481861692,-18949.9985,0.0002108,2]
[349893550,1737481861709,-37448.01812049,0.0002108,2]
[349893551,1737481862154,-500.0,0.00019178,2]
[349893552,1737481862164,-500.0,0.00019178,2]
[349893553,1737481862175,-500.0,0.00019178,2]
[349893554,1737481862184,-500.0,0.00019178,2]
[349893555,1737481862194,-124.8262769,0.00019452,2]
[349893556,1737481862551,-451.56219216,0.00019178,2]
[349893557,1737481862561,-578.2,0.00019178,2]
[349893558,1737481862571,-553.25,0.00019178,2]
[349893559,1737481862581,-375.1737231,0.00019452,2]
[349893560,1737481862591,-500.0,0.00019452,2]
[349893561,1737481862601,-500.0,0.00019452,2]
[349893562,1737481862613,-500.0,0.00019726,2]
[349893563,1737481862622,-500.0,0.00019726,2]
[349893564,1737481862633,-500.0,0.0002,2]
[349893565,1737481862644,-481.48,0.0002,2]
[349893566,1737481862654,-255.2,0.000202,2]
[349893567,1737481862663,-500.0,0.00020273,2]
[349893568,1737481862673,-500.0,0.00020547,2]
[349893569,1737481862688,-178.83408473,0.00020821,2]
[349893570,1737481862704,-335.30591527,0.00020821,2]
[349893571,1737481862713,-719.21752433,0.0002108,2]
[349893572,1737481862725,-5026.35499893,0.0002108,2]
[349893573,1737481862738,-437.99272762,0.0002108,2]
[349893574,1737481862882,-500.0,0.00019178,2]
[349893575,1737481862892,-500.0,0.00019178,2]
[349893576,1737481862902,-185.51355343,0.00019178,2]
[349893577,1737481862914,-314.48644657,0.00019178,2]
[349893578,1737481862924,-500.0,0.00019452,2]
[349893579,1737481862934,-488.91398043,0.00019452,2]
[349893580,1737481862946,-11.08601957,0.00019452,2]
[349893581,1737481862955,-500.0,0.00019726,2]
[349893582,1737481862965,-349.77993132,0.0002098,2]
[349893583,1737481862978,-74.90369094,0.0002098,2]
[349893584,1737481862987,-453.78488506,0.00021041,2]
[349893585,1737481862999,-319.32511494,0.00021041,2]
[349893586,1737481863011,-365950.9226783,0.0002108,2]
[349893587,1737481863022,-151.0,0.0002108,2]
[349893588,1737481863032,-151.0,0.0002108,2]
[349893589,1737481863042,-155.275431,0.0002108,2]
[349893590,1737481863052,-151.0,0.0002108,2]
[349893591,1737481863062,-151.0,0.0002108,2]
[349893592,1737481863072,-151.0,0.0002108,2]
[349893593,1737481863082,-151.0,0.0002108,2]
[349893594,1737481863092,-151.476641,0.0002108,2]
[349893595,1737481863102,-151.0,0.0002108,2]
[349893596,1737481863111,-151.0,0.0002108,2]
[349893597,1737481863121,-156.096369,0.0002108,2]
[349893598,1737481863131,-310.142692,0.0002108,2]
[349893599,1737481863141,-310.142692,0.0002108,2]
[349893600,1737481863151,-154.444295,0.0002108,2]
[349893601,1737481863162,-151.0,0.0002108,2]
[349893602,1737481863171,-155.730886,0.0002108,2]
[349893603,1737481863182,-427.136495,0.0002108,2]
[349893604,1737481863192,-427.136495,0.0002108,2]
[349893605,1737481863203,-151.0,0.0002108,2]
[349893606,1737481863213,-154.573818,0.0002108,2]
[349893607,1737481863223,-671.231652,0.0002108,2]
[349893608,1737481863233,-671.231652,0.0002108,2]
[349893609,1737481863244,-151.0,0.0002108,2]
[349893610,1737481863256,-183.828546,0.0002108,2]
[349893611,1737481863267,-183.828546,0.0002108,2]
[349893612,1737481863276,-797.051121,0.0002108,2]
[349893613,1737481863287,-797.051121,0.0002108,2]
[349893614,1737481863297,-151.0,0.0002108,2]
[349893615,1737481863307,-307.346844,0.0002108,2]
[349893616,1737481863317,-307.346844,0.0002108,2]
[349893617,1737481863327,-151.0,0.0002108,2]
[349893618,1737481863336,-2556.122844,0.0002108,2]
[349893619,1737481863345,-869.675254,0.0002108,2]
[349893620,1737481863354,-869.675254,0.0002108,2]
[349893621,1737481863365,-12584.6940685,0.0002108,2]
[349893622,1737481863375,-151.0,0.0002108,2]
[349893623,1737481863384,-3886.6626107,0.0002108,2]
[349893624,1737481863394,-152.12361,0.0002108,2]
[349893625,1737481863404,-151.0,0.0002108,2]
[349893626,1737481863414,-267.745618,0.0002108,2]
[349893627,1737481863423,-267.745618,0.0002108,2]
[349893628,1737481863433,-652.153848,0.0002108,2]
[349893629,1737481863443,-652.153848,0.0002108,2]
[349893630,1737481863453,-151.0,0.0002108,2]
[349893631,1737481863463,-151.0,0.0002108,2]
[349893632,1737481863473,-225.11263,0.0002108,2]
[349893633,1737481863485,-225.11263,0.0002108,2]
[349893634,1737481863494,-151.0,0.0002108,2]
[349893635,1737481863504,-161.031075,0.0002108,2]
[349893636,1737481863515,-1101.88,0.00021094,2]
[349893637,1737481863525,-666.0,0.00021094,2]
[349893638,1737481863534,-500.0,0.00021095,2]
[349893639,1737481863545,-500.0,0.00021095,2]
[349893640,1737481863554,-500.0,0.00021095,2]
[349893641,1737481863564,-500.0,0.00021095,2]
[349893642,1737481863574,-500.0,0.00021095,2]
[349893643,1737481863587,-500.0,0.00021095,2]
[349893644,1737481863604,-500.0,0.00021095,2]
[349893645,1737481863620,-196.46059827,0.00021095,2]
[349893646,1737481863635,-500.0,0.00021095,2]
[349893647,1737481863650,-500.0,0.00021095,2]
[349893648,1737481863667,-500.0,0.00021095,2]
[349893649,1737481863682,-500.0,0.00021095,2]
[349893650,1737481863698,-510.01,0.00021095,2]
[349893651,1737481863715,-500.0,0.00021095,2]
[349893652,1737481863731,-534.82,0.00021095,2]
[349893653,1737481863748,-500.0,0.00021095,2]
[349893654,1737481863764,-428.42521825,0.00021095,2]
[349893655,1737481863780,-500.0,0.00021095,2]
[349893656,1737481863795,-500.0,0.00021095,2]
[349893657,1737481863810,-500.0,0.00021095,2]
[349893658,1737481863826,-541.823232,0.00021095,2]
[349893659,1737481863842,-500.0,0.00021095,2]
[349893660,1737481863856,-435.496355,0.00021095,2]
[349893661,1737481863871,-500.0,0.00021095,2]
[349893662,1737481863890,-500.0,0.00021095,2]
[349893663,1737481863905,-538.36,0.00021095,2]
[349893664,1737481863918,-576.26,0.00021095,2]
[349893665,1737481863936,-500.0,0.00021095,2]
[349893666,1737481863949,-500.0,0.00021095,2]
[349893667,1737481863963,-500.0,0.00021095,2]
[349893668,1737481863976,-353.75690615,0.00021095,2]
[349893669,1737481863992,-500.0,0.00021095,2]
[349893670,1737481864005,-500.0,0.00021095,2]
[349893671,1737481864020,-500.0,0.00021095,2]
[349893672,1737481864033,-343.5544653,0.00021095,2]
[349893673,1737481864047,-500.0,0.00021095,2]
[349893674,1737481864061,-201.65166821,0.00021095,2]
[349893675,1737481864075,-500.0,0.00021095,2]
[349893676,1737481864090,-500.0,0.00021095,2]
[349893677,1737481864104,-500.0,0.00021095,2]
[349893678,1737481864120,-500.0,0.00021095,2]
[349893679,1737481864134,-500.0,0.00021095,2]
[349893680,1737481864149,-523.71,0.00021095,2]
[349893681,1737481864163,-500.0,0.00021095,2]
[349893682,1737481864179,-1002.64,0.00021095,2]
[349893683,1737481864194,-500.0,0.00021095,2]
[349893684,1737481864209,-968.82,0.00021095,2]
[349893685,1737481864223,-4072.09,0.00021095,2]
[349893686,1737481864238,-883.82,0.00021095,2]
[349893687,1737481864252,-648.07,0.00021095,2]
[349893688,1737481864266,-574.82,0.00021095,2]
[349893689,1737481864280,-872.29,0.00021095,2]
[349893690,1737481864294,-547.32,0.00021095,2]
[349893691,1737481864309,-591.16,0.00021095,2]
[349893692,1737481864323,-500.0,0.00021095,2]